[Event "Kvibergspelen 2022"]
[Site "Kviberg Park Hotel & Conference, Krutvagen 2, Gothenburg, Sweden"]
[Date "2022.10.02"]
[Round "8.19"]
[White "Bergstrom, Assar"]
[Black "Myrene, Jon Kare"]
[Result "0-1"]
[TimeControl "15 minutes + 5 seconds per move from move one (Round 1 - 4) / 90 minutes + 30 seconds per move from move one (Round 5 - 8)"]
[WhiteFideId "1767585"]
[BlackFideId "1510258"]
[WhiteElo "1636"]
[BlackElo "1990"]

1. e4 {[%clk 01:30:57]} {[%emt 00:00:01]} e5 {[%clk 01:30:18]} {[%emt
00:00:42]} 2. Bc4 {[%clk 01:31:24]} {[%emt 00:00:03]} Nc6 {[%clk 01:30:15]}
{[%emt 00:00:33]} 3. Nc3 {[%clk 01:31:51]} {[%emt 00:00:02]} Nf6 {[%clk
01:30:27]} {[%emt 00:00:19]} 4. d3 {[%clk 01:31:59]} {[%emt 00:00:22]} d6
{[%clk 01:29:35]} {[%emt 00:01:21]} 5. f4 {[%clk 01:30:30]} {[%emt 00:01:59]}
Be7 {[%clk 01:24:22]} {[%emt 00:05:44]} 6. Nf3 {[%clk 01:28:50]} {[%emt
00:02:10]} Bg4 {[%clk 01:22:36]} {[%emt 00:02:16]} 7. h3 {[%clk 01:27:31]}
{[%emt 00:01:49]} Bxf3 {[%clk 01:21:57]} {[%emt 00:01:10]} 8. Qxf3 {[%clk
01:27:57]} {[%emt 00:00:04]} Nd4 {[%clk 01:21:49]} {[%emt 00:00:38]} 9. Qf2
{[%clk 01:20:09]} {[%emt 00:08:16]} O-O {[%clk 01:12:31]} {[%emt 00:09:48]} 10.
Be3 {[%clk 01:13:26]} {[%emt 00:07:14]} Nh5 {[%clk 01:04:40]} {[%emt 00:08:21]}
11. O-O-O {[%clk 01:08:04]} {[%emt 00:05:51]} Bh4 {[%clk 01:01:37]} {[%emt
00:03:33]} 12. Qd2 {[%clk 01:05:18]} Nxf4 {[%clk 00:53:43]} {[%emt 00:11:41]}
13. Bxf4 {[%clk 00:52:39]} exf4 {[%clk 00:53:49]} {[%emt 00:13:32]} 14. Kb1
{[%clk 00:51:56]} Bg3 {[%clk 00:50:42]} {[%emt 00:04:50]} 15. h4 {[%clk
00:40:23]} {[%emt 00:12:03]} c6 {[%clk 00:48:56]} {[%emt 00:02:16]} 16. Rdf1
{[%clk 00:38:12]} {[%emt 00:02:39]} b5 {[%clk 00:47:22]} {[%emt 00:02:06]} 17.
Bb3 {[%clk 00:38:18]} {[%emt 00:00:25]} a5 {[%clk 00:47:11]} {[%emt 00:00:41]}
18. a4 {[%clk 00:36:58]} {[%emt 00:01:50]} Rb8 {[%clk 00:43:22]} {[%emt
00:04:17]} 19. axb5 {[%clk 00:33:11]} {[%emt 00:04:19]} cxb5 {[%clk 00:32:27]}
{[%emt 00:11:25]} 20. Bd5 {[%clk 00:31:11]} {[%emt 00:02:29]} Rc8 {[%clk
00:27:21]} {[%emt 00:05:34]} 21. Rc1 {[%clk 00:29:38]} {[%emt 00:02:05]} Bxh4
{[%clk 00:21:58]} {[%emt 00:05:54]} 22. Qxf4 {[%clk 00:21:18]} {[%emt
00:08:49]} Bg5 {[%clk 00:20:09]} {[%emt 00:02:17]} 23. Qh2 {[%clk 00:20:42]}
{[%emt 00:01:06]} h6 {[%clk 00:20:05]} {[%emt 00:00:35]} 24. Qg1 {[%clk
00:13:04]} {[%emt 00:08:07]} b4 {[%clk 00:13:26]} {[%emt 00:07:10]} 25. Nd1
{[%clk 00:09:01]} {[%emt 00:04:31]} Ne2 {[%clk 00:11:39]} {[%emt 00:02:18]} 26.
Bxf7+ {[%clk 00:06:40]} {[%emt 00:02:51]} Rxf7 {[%clk 00:11:37]} {[%emt
00:00:32]} 0-1